bitfinex-derivatives/quotes_ETHF0:USTF0_20251213
["timestamp","ask_amount","ask_price","bid_price","bid_amount"]
[1765622622098,1.6687078,3132.8,3132.7,1.655]
[1765622622801,0.8170078,3132.8,3132.7,1.655]
[1765622624900,0.0078078,3132.8,3132.7,1.655]
[1765622626096,0.8170078,3132.8,3132.7,1.655]
[1765622626292,0.0078078,3132.8,3132.7,1.655]
[1765622627403,0.0078078,3132.8,3132.7,1.81459]
[1765622632714,1.19576955,3133.7,3133.0,0.65597]
[1765622632899,0.8092,3133.1,3133.0,5.51877]
[1765622633102,2.1466,3133.5,3133.4,0.8185]
[1765622633499,1.6609,3133.1,3133.0,5.02237]
[1765622633808,1.66363595,3133.1,3133.0,5.02237]
[1765622634503,1.66363595,3133.1,3133.0,4.18587]
[1765622634707,1.66363595,3133.1,3133.0,3.36737]
[1765622634903,1.66363595,3133.1,3133.0,3.2078]
[1765622637012,2.2612,3133.0,3132.9,0.8778]
[1765622637211,3.45696955,3133.0,3132.9,0.8778]
[1765622637908,1.7331,3132.7,3132.6,4.9682]
[1765622640108,1.7331,3132.7,3132.6,3.2078]
[1765622641614,0.89473595,3133.1,3133.0,1.7604]
[1765622641810,0.00273595,3133.1,3133.0,2.2777]
[1765622642212,0.892,3132.8,3132.7,0.15959]
[1765622642514,1.7331,3132.8,3132.7,0.15959]
[1765622642821,2.2612,3133.0,3132.9,0.8778]
[1765622643009,3.45696955,3133.0,3132.9,0.8778]
[1765622643308,0.892,3133.0,3132.9,1.7604]
[1765622643510,0.89473595,3133.1,3133.0,1.7604]
[1765622643714,0.00273595,3133.1,3133.0,2.2687]
[1765622644713,0.89473595,3133.1,3133.0,2.2687]
[1765622647227,0.00273595,3133.1,3133.0,2.2687]
[1765622647427,2.93087842,3133.1,3133.0,1.7604]
[1765622648531,0.892,3132.7,3132.6,5.12779]
[1765622648727,2.2612,3133.0,3132.9,1.7604]
[1765622650231,2.2612,3132.5,3132.4,0.0039203]
[1765622650634,2.2612,3132.5,3132.4,0.8817203]
[1765622652831,2.2612,3132.5,3132.4,0.0039203]
[1765622654232,1.7331,3132.2,3132.0,0.15962]
[1765622654433,2.92814247,3132.2,3132.0,0.15962]
[1765622654833,2.92814247,3132.2,3132.1,0.88258477]
[1765622655034,2.92814247,3132.2,3132.1,0.00478477]
[1765622655227,2.92814247,3132.2,3132.1,1.7687972]
[1765622656637,2.08704247,3132.2,3132.1,1.7687972]
[1765622656833,1.19504247,3132.2,3132.1,1.7687972]
[1765622657338,0.892,3132.2,3132.1,0.0083972]
[1765622657536,1.7331,3132.2,3132.1,0.0083972]
[1765622657738,1.7331,3132.2,3132.1,0.8861972]
[1765622658938,1.7331,3132.2,3132.1,1.7687972]
[1765622659326,0.892,3132.2,3132.1,1.7687972]
[1765622659643,1.7331,3132.2,3132.1,1.7687972]
[1765622662039,1.7331,3132.2,3132.1,0.0083972]
[1765622664334,1.7331,3132.2,3132.1,1.7687972]
[1765622665045,0.892,3132.2,3132.1,1.7687972]
[1765622665946,1.6965,3132.2,3132.1,1.7687972]
[1765622666945,1.6965,3132.2,3132.1,0.0083972]
[1765622667542,1.6965,3132.2,3132.1,0.7919972]
[1765622669846,2.89248835,3132.2,3132.1,0.7919972]
[1765622670445,2.89248835,3132.2,3132.1,1.6148972]
[1765622673148,2.89248835,3132.2,3132.1,0.7919972]
[1765622673649,2.89248835,3132.2,3132.1,0.0083972]
[1765622675055,2.89248835,3132.2,3132.1,1.6148972]
[1765622679451,2.08798835,3132.2,3132.1,1.6148972]
[1765622680858,2.85768835,3132.2,3132.1,1.6148972]
[1765622681361,2.85750685,3132.2,3132.1,1.6148972]
[1765622685454,1.19580685,3132.2,3132.1,1.6148972]
[1765622685663,2.1178,3132.5,3132.4,1.6065]
[1765622685857,3.31360685,3132.5,3132.4,0.7836]
[1765622686162,1.5897,3132.2,3132.1,1.6148972]
[1765622686362,2.78550685,3132.2,3132.1,1.6148972]
[1765622688764,1.5897,3132.2,3132.1,1.6148972]
[1765622688968,2.78550685,3132.2,3132.1,1.6148972]
[1765622689262,2.01580685,3132.2,3132.1,1.6148972]
[1765622689463,2.78550685,3132.4,3132.3,1.6065]
[1765622691766,1.5897,3132.2,3132.1,0.7919972]
[1765622691958,2.78550685,3132.2,3132.1,0.7919972]
[1765622692266,1.5897,3132.2,3132.1,1.6148972]
[1765622692463,2.78550685,3132.2,3132.1,1.6148972]
[1765622694164,0.82,3132.2,3132.1,1.6148972]
[1765622694361,2.78550685,3132.2,3132.1,1.6148972]
[1765622695267,2.0564,3132.5,3132.4,1.4711]
[1765622695668,1.5283,3132.2,3132.1,1.4794972]
[1765622697569,3.25220685,3132.5,3132.4,0.7399]
[1765622698768,0.7654,3132.2,3132.1,1.4794972]
[1765622698972,1.19580685,3132.3,3132.1,1.4794972]
[1765622699271,1.96120685,3132.3,3132.2,1.4711]
[1765622699470,2.72410685,3132.3,3132.2,1.4711]
[1765622700471,2.72410685,3132.3,3132.2,0.7399]
[1765622700670,1.5283,3132.2,3132.1,0.0083972]
[1765622701874,2.72410685,3132.2,3132.1,0.0083972]
[1765622703272,2.72410685,3132.2,3132.1,0.7482972]
[1765622704169,1.5283,3132.2,3132.1,4.6872972]
[1765622704376,2.72410685,3132.2,3132.1,4.6872972]
[1765622706862,0.7654,3132.2,3132.1,4.6872972]
[1765622707063,2.72410685,3132.2,3132.1,4.6872972]
[1765622707269,1.5283,3132.2,3132.1,4.6872972]
[1765622707571,2.72410685,3132.2,3132.1,4.6872972]
[1765622707762,2.72410685,3132.2,3132.1,3.9560972]
[1765622707967,2.72410685,3132.2,3132.1,0.7482972]
[1765622708167,2.72410685,3132.2,3132.1,0.0083972]
[1765622708363,3.9199137,3132.2,3132.1,0.0083972]
[1765622708568,2.72410685,3132.2,3132.1,0.0083972]
[1765622710976,1.5283,3131.8,3131.7,3.2078]
[1765622711176,1.5283,3131.4,3131.3,0.89956]
[1765622711673,2.72410685,3131.4,3131.3,0.15966]
[1765622711977,2.72410685,3131.4,3131.3,0.16259114]
[1765622712176,2.72410685,3131.4,3131.3,0.00293114]
[1765622712677,2.72410685,3131.4,3131.3,0.74283114]
[1765622712977,1.5283,3131.4,3131.3,1.47403114]
[1765622714571,1.5283,3131.4,3131.3,0.00293114]
[1765622718369,2.72497178,3131.4,3131.3,0.00293114]
[1765622722681,1.6663,3131.2,3131.1,3.2078]
[1765622722882,4.05964356,3131.2,3131.1,3.2078]
[1765622723682,4.05964356,3131.2,3131.1,3.21138969]
[1765622725784,1.5638,3130.7,3130.6,3.2078]
[1765622726078,1.5638,3130.4,3130.3,0.96101]
[1765622726281,2.76047178,3130.4,3130.3,0.96101]
[1765622726875,2.76438681,3130.4,3130.3,1.73073333]
[1765622727476,0.00391503,3130.4,3130.3,1.73073333]
[1765622727988,0.78851503,3130.4,3130.3,1.73073333]
[1765622728287,1.56771503,3130.4,3130.3,1.73073333]
[1765622728889,0.00391503,3130.4,3130.3,2.92740511]
[1765622729185,0.00391503,3130.4,3130.3,1.73073333]
[1765622729884,0.78851503,3130.4,3130.3,1.73073333]
[1765622730085,1.56771503,3130.4,3130.3,1.73073333]
[1765622730385,1.56771503,3130.4,3130.3,0.16233333]
[1765622730587,2.76438681,3130.4,3130.3,0.00262333]
[1765622731193,3.96105859,3130.4,3130.3,0.00262333]
[1765622731883,2.76518286,3130.4,3130.3,0.00262333]
[1765622732690,1.5638,3130.3,3130.2,3.2078]
[1765622733690,1.5638,3130.3,3130.2,3.21138364]
[1765622735599,0.00391503,3130.4,3130.3,1.5684]
[1765622743812,0.78851503,3130.4,3130.3,1.5684]
[1765622744805,0.00391503,3130.4,3130.3,1.5684]
[1765622756305,0.00391503,3130.4,3130.3,2.76538533]
[1765622756698,4.6981,3131.2,3131.1,1.4008]
[1765622757406,4.6981,3131.2,3131.1,0.706]
[1765622757708,4.70218802,3131.2,3131.1,0.706]
[1765622757903,4.70218802,3131.2,3131.1,1.4008]
[1765622760611,4.70218802,3131.2,3131.1,0.706]
[1765622761715,4.70218802,3131.2,3131.1,1.4008]
[1765622762010,3.96518802,3131.2,3131.1,1.4008]
[1765622762711,4.70218802,3131.2,3131.1,1.4008]
[1765622762907,0.00408802,3131.2,3131.1,1.4008]
[1765622765814,1.49438802,3131.2,3130.6,40.8]
[1765622766016,1.4903,3130.7,3130.6,1.4008]
[1765622767016,2.68728533,3130.7,3130.6,0.706]
[1765622767706,1.4903,3130.6,3130.5,3.9138]
[1765622767911,1.4903,3130.6,3130.5,0.706]
[1765622768107,4.40478533,3130.7,3130.2,1.40438364]
[1765622768108,1.4903,3130.3,3130.2,1.40438364]
[1765622769413,1.9119,3130.5,3130.4,1.4008]
[1765622769616,0.7533,3130.5,3130.4,1.4008]
[1765622771817,1.4903,3130.5,3130.4,1.4008]
[1765622772510,0.7533,3130.5,3130.4,1.4008]
[1765622773717,1.4903,3130.5,3130.4,1.4008]
[1765622774021,0.7533,3130.3,3130.2,1.40438364]
[1765622774718,3.9611,3130.8,3130.7,1.4008]
[1765622774929,4.6981,3130.8,3130.7,1.4008]
[1765622775424,4.6981,3130.8,3130.2,0.00358364]
[1765622775823,4.6981,3130.8,3130.7,1.4008]
[1765622776724,4.6981,3130.8,3130.7,0.706]
[1765622779728,0.7533,3130.3,3130.2,1.40438364]
[1765622780122,1.4903,3130.3,3130.2,1.40438364]
[1765622780323,0.7533,3130.3,3130.2,1.40438364]
[1765622780629,2.68728533,3130.6,3130.5,0.706]
[1765622780928,2.68728533,3130.6,3130.5,1.4162]
[1765622781130,2.68728533,3130.6,3130.5,0.706]
[1765622782033,2.68728533,3130.6,3130.5,1.4162]
[1765622782434,2.68728533,3130.6,3130.5,0.706]
[1765622782742,2.68728533,3130.6,3130.5,1.4162]
[1765622783536,1.4903,3130.6,3130.5,1.4162]
[1765622783833,1.4768,3130.6,3130.5,1.4162]
[1765622786138,2.67378533,3130.6,3130.5,1.4162]
[1765622786338,1.4919,3130.3,3130.2,1.47948364]
[1765622786835,1.4919,3130.3,3130.2,0.75958364]
[1765622787536,2.68888533,3130.3,3130.2,0.75958364]
[1765622788633,2.68888533,3130.3,3130.2,0.00358364]
[1765622789333,2.6893018,3130.3,3130.2,0.00358364]
[1765622789535,1.4919,3130.1,3130.0,0.00478477]
[1765622789735,2.6893018,3130.1,3130.0,0.00478477]
[1765622790535,2.6893018,3130.1,3130.0,0.00786668]
[1765622791941,2.68950476,3130.1,3130.0,0.00786668]
[1765622795536,1.4919,3130.1,3130.0,1.48376668]
[1765622797750,0.7533,3130.1,3130.0,1.48376668]
[1765622798545,1.4919,3130.1,3130.0,1.48376668]
[1765622800347,4.6997,3130.4,3130.3,1.4759]
[1765622800545,1.4919,3130.1,3130.0,0.00786668]
[1765622800746,1.4919,3130.1,3130.0,1.48376668]
[1765622801952,1.4919,3130.1,3130.0,0.76386668]
[1765622802450,1.4919,3130.1,3130.0,0.00786668]
[1765622809153,2.68950476,3129.7,3129.6,3.2078]
[1765622809355,3.88710952,3129.7,3129.6,3.2078]
[1765622809546,2.68950476,3129.7,3129.6,3.2078]
[1765622810053,2.68950476,3129.7,3129.6,3.21057275]
[1765622810949,1.19760476,3129.7,3129.6,4.68647275]
[1765622811146,0.7533,3129.7,3129.6,4.68647275]
[1765622811654,1.91499256,3130.0,3129.9,1.4759]
[1765622812643,1.91499256,3130.0,3129.9,0.756]
[1765622813951,1.4919,3129.7,3129.6,4.68647275]
[1765622814158,2.68950476,3129.7,3129.6,3.96657275]
[1765622814856,2.68950476,3129.7,3129.6,4.68647275]
[1765622816059,2.68950476,3129.7,3129.6,3.21057275]
[1765622817854,2.68950476,3129.7,3129.6,3.97737275]
[1765622818856,2.68950476,3129.7,3129.6,0.76957275]
[1765622819251,2.68950476,3129.7,3129.6,0.00277275]
[1765622821858,1.9109,3129.5,3129.4,3.2078]
[1765622822063,3.10850476,3129.5,3129.4,3.2078]
[1765622822757,1.9109,3129.5,3129.4,3.9746]
[1765622822954,3.10850476,3129.5,3129.4,3.97716837]
[1765622823355,1.9109,3129.5,3129.4,3.21036837]
[1765622823555,1.9109,3129.5,3129.4,3.97716837]
[1765622823955,0.7366,3129.5,3129.4,4.70896837]
[1765622824160,1.4896,3129.8,3129.7,1.4986]
[1765622824360,3.11029732,3130.0,3129.9,1.4986]
[1765622824657,1.9109,3129.5,3129.4,3.21036837]
[1765622824860,1.9109,3129.5,3129.4,3.97716837]
[1765622825853,1.9109,3129.5,3129.4,3.21036837]
[1765622827170,0.7366,3129.5,3129.4,4.70896837]
[1765622827468,2.68730862,3129.7,3129.6,1.4986]
[1765622829369,2.68730862,3129.9,3129.8,1.4986]
[1765622829872,2.68730862,3129.9,3129.8,0.7668]
[1765622830570,2.68730862,3129.9,3129.8,1.4986]
[1765622832268,1.4896,3129.9,3129.8,1.4986]
[1765622832469,0.74139256,3130.0,3129.9,1.4986]
[1765622832674,1.49439256,3130.0,3129.9,1.4986]
[1765622833775,0.00479256,3130.0,3129.9,1.4986]
[1765622838882,0.74139256,3130.0,3129.9,1.4986]
[1765622839080,3.11340118,3130.0,3129.9,1.4986]
[1765622839976,1.4896,3129.9,3129.8,0.92653]
[1765622840182,1.4896,3129.9,3129.8,1.65833]
[1765622840385,1.93430862,3129.9,3129.8,1.65833]
[1765622842686,0.74139256,3130.0,3129.9,1.4986]
[1765622844785,1.21939256,3130.0,3129.8,0.15973]
[1765622844983,2.68590862,3129.9,3129.8,0.85893]
[1765622845978,2.68590862,3129.9,3129.8,1.60213]
[1765622846482,1.95150862,3129.9,3129.8,1.60213]
[1765622846682,0.75859256,3130.0,3129.9,1.4424]
[1765622847397,0.00479256,3130.0,3129.9,1.4424]
[1765622847781,0.75859256,3130.0,3129.9,1.4424]
[1765622847988,1.49299256,3130.0,3129.9,1.4424]
[1765622848687,1.95459256,3130.0,3129.9,1.4424]
[1765622850597,1.49299256,3130.0,3129.9,1.4424]
[1765622850790,0.75859256,3130.0,3129.9,1.4424]
[1765622851091,1.49299256,3130.0,3129.9,1.4424]
[1765622851694,0.75859256,3130.0,3129.9,1.4424]
[1765622853399,0.00479256,3130.0,3129.9,1.4424]
[1765622855002,0.75859256,3130.0,3129.9,1.4424]
[1765622856802,0.00479256,3130.0,3129.9,1.4424]
[1765622858002,0.00479256,3130.0,3129.9,1.60213]
[1765622858200,0.00479256,3130.0,3129.6,3.2078]
[1765622858201,4.696,3130.7,3130.6,1.4424]
[1765622859001,4.696,3130.7,3130.6,0.6992]
[1765622861298,0.7538,3130.3,3130.2,1.60212]
[1765622861605,1.4882,3130.3,3130.2,1.60212]
[1765622864711,1.4882,3130.3,3130.2,0.15972]
[1765622865507,1.4882,3130.3,3130.2,0.85892]
[1765622866313,1.4882,3130.3,3130.2,0.15972]
[1765622866703,1.4882,3130.3,3129.6,4.4047141]
[1765622866910,1.4882,3130.3,3129.6,4.5644541]
[1765622867213,1.4882,3130.3,3129.6,45.3644541]
[1765622868011,1.4882,3130.3,3129.7,0.15974]
[1765622870411,1.4882,3130.3,3129.6,45.2047141]
[1765622870620,0.7538,3130.3,3130.2,1.4424]
[1765622873318,0.7538,3130.5,3130.4,1.4424]
[1765622873712,1.4882,3130.5,3130.4,1.4424]
[1765622874008,1.9498,3130.5,3130.4,1.4424]
[1765622875919,4.7245,3130.7,3130.6,1.4966]
[1765622876824,4.7245,3130.7,3130.6,0.7435]
[1765622879017,4.7245,3130.7,3130.6,1.4966]
[1765622879218,2.86088033,3131.1,3131.0,1.9189]
[1765622879518,2.86088033,3131.1,3131.0,3.1158141]
[1765622879723,3.61848033,3131.1,3131.0,3.1158141]
[1765622880111,0.76168802,3131.2,3131.1,1.4966]
[1765622880512,0.00408802,3131.2,3131.1,1.4966]
[1765622882017,3.21259256,3131.5,3131.4,1.4966]
[1765622882217,0.00479256,3131.5,3131.4,1.4966]
[1765622882426,0.00479256,3131.5,3131.4,1.65626]
[1765622883122,0.00835724,3131.5,3131.4,1.65626]
[1765622883526,0.00835724,3131.5,3131.4,2.8531741]
[1765622883824,0.00835724,3131.5,3131.4,1.65626]
[1765622888827,0.00835724,3131.5,3131.4,2.8531741]
[1765622889840,3.2078,3132.4,3131.7,0.15964]
[1765622890042,0.7576,3131.8,3131.7,4.86404]
[1765622890244,1.5167,3131.8,3131.7,4.86404]
[1765622890438,1.5167,3131.8,3131.7,4.11094]
[1765622890633,1.5204131,3131.8,3131.7,4.11483233]
[1765622890829,1.5204131,3131.8,3131.7,4.86793233]
[1765622892941,1.5204131,3131.8,3131.7,4.11483233]
[1765622893130,2.7173272,3131.8,3131.7,0.16353233]
[1765622893335,2.7173272,3131.8,3131.7,0.00389233]
[1765622893336,5.9251272,3131.8,3131.7,0.00389233]
[1765622894844,4.7282131,3131.8,3131.7,1.50049233]
[1765622896436,4.7282131,3131.8,3131.7,0.74739233]
[1765622896943,4.7282131,3131.8,3131.7,0.00389233]
[1765622897243,1.5204131,3131.8,3131.7,0.00389233]
[1765622908743,1.5204131,3131.8,3131.7,1.42049233]
[1765622910147,1.5204131,3131.8,3131.7,0.00389233]
[1765622910648,1.5204131,3131.8,3131.7,0.71329233]
[1765622911040,1.5204131,3131.8,3131.7,0.00389233]
[1765622911845,1.4704,3131.6,3131.5,0.15965]
[1765622912848,1.4704,3131.6,3131.5,0.16357264]
[1765622913847,2.66669191,3131.6,3131.5,0.16357264]
[1765622915442,2.66669191,3131.6,3131.5,0.87297264]
[1765622916651,2.66669191,3131.6,3131.5,0.16357264]
[1765622918555,2.66669191,3131.6,3131.5,0.00392264]
[1765622918746,0.0037131,3131.8,3131.5,0.00392264]
[1765622919055,2.66669191,3131.6,3131.5,0.00392264]
[1765622921444,2.66669191,3131.6,3131.5,0.71332264]
[1765622921744,1.4704,3131.6,3131.5,0.71332264]
[1765622922743,1.4704,3131.6,3131.5,1.42052264]
[1765622924454,0.7001,3131.6,3131.5,1.42052264]
[1765622924952,1.4704,3131.6,3131.5,1.42052264]
[1765622935959,0.7356131,3131.8,3131.7,1.4297]
[1765622936157,0.0037131,3131.8,3131.7,5.83359968]
[1765622937555,0.0037131,3131.8,3131.7,4.79714]
[1765622937755,0.0037131,3131.8,3131.7,5.99323968]
[1765622938665,0.7356131,3131.8,3131.7,5.99323968]
[1765622939058,1.4889131,3131.8,3131.7,4.79714]
[1765622939454,1.4889131,3131.8,3131.7,0.15964]
[1765622939666,1.4852,3131.6,3131.5,0.00392264]
[1765622940467,1.4852,3131.6,3131.5,0.71422264]
[1765622942360,1.4852,3131.6,3131.5,1.43362264]
[1765622942968,1.4852,3131.6,3131.5,0.71422264]
[1765622943157,1.4852,3131.6,3131.5,1.43362264]
[1765622944369,1.4852,3131.6,3131.5,0.00392264]
[1765622944763,2.68129968,3131.6,3131.5,0.00392264]
[1765622944963,2.68129968,3131.6,3131.5,0.71422264]
[1765622945266,1.4852,3131.6,3131.5,0.71422264]
[1765622947569,1.4852,3131.6,3131.5,1.43362264]
[1765622947863,0.7356131,3131.8,3131.7,1.4297]
[1765622948168,1.4889131,3131.8,3131.7,1.4297]
[1765622949063,0.7356131,3131.8,3131.7,1.4297]
[1765622949966,0.0037131,3131.8,3131.7,1.4297]
[1765622950370,0.7356131,3131.8,3131.7,1.4297]
[1765622951769,0.0037131,3131.8,3131.7,1.4297]
[1765622953868,0.7356131,3131.8,3131.7,1.4297]
[1765622955865,1.4889131,3131.8,3131.7,1.4297]
[1765622956164,1.4889131,3131.8,3131.7,0.7103]
[1765622957176,1.4889131,3131.8,3131.7,1.4297]
[1765622958575,1.4852,3131.7,3131.6,0.96525866]
[1765622958784,1.4852,3131.7,3131.6,0.7103]
[1765622958970,1.4852,3131.6,3131.5,0.16357264]
[1765622959275,2.68129968,3131.6,3131.5,0.16357264]
[1765622960777,1.4852,3131.6,3131.5,0.16357264]
[1765622962380,2.68129968,3131.6,3131.5,0.16357264]
[1765622964482,1.4852,3131.6,3131.5,0.16357264]
[1765622966179,1.4852,3131.6,3131.5,2.80897232]
[1765622967681,1.4852,3131.6,3131.5,2.80884474]
[1765622968483,1.4852,3131.6,3131.5,2.09164474]
[1765622968675,1.4852,3131.6,3131.5,2.80884474]
[1765622968983,1.4852,3131.6,3131.5,2.09164474]
[1765622970383,1.4852,3131.6,3131.5,2.80884474]
[1765622970879,1.4852,3131.6,3131.5,0.89567264]
[1765622971186,1.4852,3131.6,3131.5,0.16357264]
[1765622971581,1.4852,3131.6,3131.5,0.89567264]
[1765622972487,1.4852,3131.6,3131.5,1.61287264]
[1765622975282,0.7319,3131.6,3131.5,1.61287264]
[1765622975488,1.4616131,3131.8,3131.7,1.4493]
[1765622976880,0.50372519,3131.8,3131.7,1.35346]
[1765622977078,3.925,3132.0,3131.9,1.4493]
[1765622977281,4.6657,3132.0,3131.9,1.4493]
[1765622977887,4.66939235,3132.0,3131.9,1.4493]
[1765622978089,3.92869235,3132.0,3131.9,1.60893]
[1765622978387,0.00369235,3132.0,3131.9,1.60893]
[1765622980087,0.72089235,3132.0,3131.9,1.60893]
[1765622980391,1.46159235,3132.0,3131.9,1.60893]
[1765622982691,0.72089235,3132.0,3131.9,1.60893]
[1765622983589,1.46159235,3132.0,3131.9,1.60893]
[1765622984194,1.46159235,3132.0,3131.9,0.89173]
[1765622984396,1.90099235,3132.0,3131.9,0.15963]
[1765622988401,1.90099235,3132.0,3131.9,0.89173]
[1765622989901,1.46159235,3132.0,3131.9,0.89173]
[1765622990505,1.46159235,3132.0,3131.9,1.60893]
[1765622991904,0.72089235,3132.0,3131.9,1.60893]
[1765622996104,1.42939235,3132.0,3131.9,1.60893]
[1765623002707,0.72089235,3132.0,3131.9,2.804977]
[1765623003109,0.00369235,3132.0,3131.9,2.804977]
[1765623004016,0.00369235,3132.0,3131.9,2.8044704]
[1765623007612,0.71219235,3132.0,3131.9,2.8044704]
[1765623015121,0.71219235,3132.0,3131.9,1.60893]
[1765623015323,0.71219235,3132.0,3131.9,2.8044704]
[1765623017917,0.00369235,3132.0,3131.9,2.8044704]
[1765623018117,0.71219235,3132.0,3131.9,2.8044704]
[1765623021020,1.40759235,3132.0,3131.9,2.8044704]
[1765623021624,1.40759235,3132.0,3131.9,0.89173]
[1765623021825,1.40759235,3132.0,3131.9,0.15963]
[1765623022025,1.40759235,3132.0,3131.9,0.87253]
[1765623022421,1.40759235,3132.0,3131.9,1.59953]
[1765623022628,0.00369235,3132.0,3131.9,2.7950704]
[1765623022830,1.4394,3132.6,3132.5,2.0573]
[1765623023030,1.4394,3132.6,3132.5,0.1596]
[1765623023623,4.6472,3132.6,3132.5,0.1596]
[1765623023830,4.6511707,3132.6,3132.5,0.1596]
[1765623024527,1.4394,3132.2,3132.1,2.6354404]
[1765623024831,1.4394,3132.2,3132.1,1.9084404]
[1765623025728,0.4579,3132.5,3131.8,4.86253]
[1765623025729,1.493,3131.9,3131.8,4.86253]
[1765623025931,1.493,3131.9,3131.8,1.65473]
[1765623026138,0.7293,3131.9,3131.8,2.8502704]
[1765623026335,1.6534404,3132.5,3131.8,2.8502704]
[1765623026631,0.4579,3132.5,3131.8,6.0580704]
[1765623027338,0.68064294,3132.5,3131.8,6.0580704]
[1765623028336,1.493,3131.9,3131.8,2.8502704]
[1765623029037,0.7293,3131.9,3131.8,2.8502704]
[1765623030139,4.7008,3132.2,3132.1,1.4951]
[1765623030341,4.7008,3132.2,3132.1,0.7266]
[1765623032226,0.7637,3132.1,3131.8,0.15963]
[1765623032431,1.493,3131.9,3131.8,1.65473]
[1765623032726,1.493,3131.9,3131.8,0.88623]
[1765623034334,1.493,3131.9,3131.8,0.15963]
[1765623038042,1.493,3131.9,3131.8,0.88623]
[1765623043946,1.493,3131.9,3131.8,0.15963]
[1765623045246,1.493,3131.9,3131.8,0.88623]
[1765623050860,1.493,3131.9,3131.8,0.15963]
[1765623053565,1.493,3131.6,3131.5,1.49902264]
[1765623053766,1.493,3131.6,3131.5,1.93182264]
[1765623055467,0.7293,3131.6,3131.5,1.93182264]
[1765623056556,1.4543,3131.6,3131.5,1.93182264]
[1765623056759,1.4543,3131.6,3131.5,3.12770383]
[1765623059169,1.4543,3131.6,3131.5,1.93182264]
[1765623059472,1.4543,3131.6,3131.5,3.12770383]
[1765623059771,1.4525,3132.0,3131.9,0.7292]
[1765623061165,1.4525,3132.0,3131.9,1.4467]
[1765623062771,1.4525,3132.0,3131.9,0.7292]
[1765623064472,1.4525,3132.0,3131.9,1.4467]
[1765623066375,1.4525,3132.0,3131.9,0.7292]
[1765623072379,1.4525,3132.0,3131.9,1.4467]
[1765623079193,1.4525,3132.0,3131.9,0.7292]
[1765623081595,1.4525,3132.0,3131.7,1.19585918]
[1765623081596,1.4551,3131.8,3131.7,1.4292]
[1765623081786,1.4551,3131.8,3131.7,0.7292]
[1765623082792,1.4524,3131.6,3131.5,3.24883182]
[1765623083899,1.63535918,3132.0,3131.5,3.24883182]
[1765623084102,0.7248,3131.6,3131.5,3.24883182]
[1765623085591,1.85810212,3132.0,3131.5,3.24883182]
[1765623086899,0.66224294,3132.0,3131.5,3.24883182]
[1765623087099,1.447,3131.6,3131.5,2.05297264]
[1765623087396,1.447,3131.6,3131.5,2.54883182]
[1765623087599,1.447,3131.6,3131.5,3.26313182]
[1765623089899,1.447,3132.0,3131.9,1.4426]
[1765623090900,1.447,3132.0,3131.9,0.7283]
[1765623091103,1.447,3131.8,3131.7,2.63845918]
[1765623095198,1.447,3131.8,3131.7,1.4426]
[1765623095503,1.447,3131.8,3131.7,0.7283]
[1765623096299,1.447,3131.6,3131.5,2.03897264]
[1765623097103,0.7387,3131.6,3131.5,2.03897264]
[1765623097407,1.447,3132.0,3131.9,1.4426]
[1765623100804,1.447,3132.0,3131.5,2.03897264]
[1765623100805,1.447,3131.6,3131.5,2.03897264]
[1765623109609,1.447,3131.6,3131.5,0.00392264]
[1765623110007,1.447,3131.6,3131.5,0.73222264]
[1765623110211,1.447,3131.6,3131.5,1.44652264]
[1765623113517,1.447,3131.6,3131.5,1.89362264]
[1765623116918,1.447,3131.6,3131.5,0.00392264]
[1765623117321,1.447,3131.6,3131.5,0.72892264]
[1765623117819,1.447,3131.6,3131.5,1.42532264]
[1765623118416,1.447,3131.6,3131.5,0.00392264]
[1765623118616,1.447,3131.6,3131.5,0.72892264]
[1765623118916,1.447,3131.6,3131.5,1.42532264]
[1765623121319,2.64325362,3131.6,3131.5,0.00392264]
[1765623125120,1.447,3131.6,3131.5,0.00392264]
[1765623126725,0.7387,3131.6,3131.5,1.86772264]
[1765623127018,3.9514,3131.8,3131.7,1.4214]
[1765623127325,3.2078,3131.8,3131.7,2.61765362]
[1765623128224,3.9514,3131.8,3131.7,2.61765362]
[1765623129526,4.6514,3131.8,3131.7,2.61765362]
[1765623130127,1.4436,3131.8,3131.7,2.61765362]
[1765623132826,0.7436,3131.8,3131.7,1.4214]
[1765623133429,1.4436,3131.8,3131.7,1.4214]
[1765623134533,0.22274294,3132.2,3131.7,1.4214]
[1765623134733,1.66634294,3132.2,3132.1,0.725]
[1765623135031,1.66634294,3132.2,3131.6,1.19625362]
[1765623137230,4.87414294,3132.2,3131.6,1.19625362]
[1765623137935,1.66634294,3132.2,3131.6,1.19625362]
[1765623138133,4.87414294,3132.2,3131.6,1.19625362]
[1765623138335,4.87414294,3132.2,3132.1,0.725]
[1765623138633,5.84374246,3132.2,3132.1,0.725]
[1765623139037,4.87414294,3132.2,3132.1,0.725]
[1765623139229,3.9514,3132.2,3132.1,1.4214]
[1765623139437,0.22274294,3133.1,3132.5,1.8638]
[1765623139730,0.22274294,3133.0,3132.5,6.26785362]
[1765623139934,1.4475707,3132.6,3132.5,5.0716]
[1765623140635,0.0039707,3132.6,3132.5,5.0716]
[1765623141733,1.4437707,3132.6,3132.5,5.0716]
[1765623142328,0.7495707,3132.6,3132.5,5.0716]
[1765623144032,0.7495707,3132.6,3132.5,3.2078]
[1765623144033,2.64002432,3132.6,3132.5,3.2078]
[1765623144227,2.64002432,3132.6,3131.9,3.2078]
[1765623144228,2.10994294,3132.0,3131.9,3.2078]
[1765623144540,1.4398,3131.6,3131.5,5.11962264]
[1765623150237,1.4398,3131.6,3131.5,3.95702264]
[1765623151339,1.4398,3131.6,3131.5,0.00392264]
[1765623152142,1.4398,3131.6,3131.5,1.46982264]
[1765623152343,1.4398,3131.6,3131.5,0.72262264]
[1765623153238,1.4398,3131.6,3131.5,1.46982264]
[1765623155645,1.4398,3131.6,3131.5,0.72262264]
[1765623155943,2.63610548,3131.6,3131.5,0.72262264]
[1765623156244,2.63610548,3131.6,3131.5,0.00392264]
[1765623158250,1.4398,3131.6,3131.5,0.00392264]
[1765623158549,1.4398,3131.6,3131.5,1.46982264]
[1765623159049,2.63610548,3131.6,3131.5,0.72262264]
[1765623159548,2.63610548,3131.6,3131.5,0.00392264]